Cogmind - Beta 17 @@@ ROGUE MODE // 2026.07.06 @ 01:49:12 Player: Artackni Result: Destroyed by Y-72 Warden with Quantum Rifle Performance ------------- Evolutions (7) 3500 Regions Visited (19) 3800 Robots Destroyed (284) 1420 Value Destroyed (9032) 9032 Prototype IDs (25) 500 Alien Tech Used (0) 0 Bonus (23786) 23786 TOTAL SCORE: 42038 Bonus ------- High Alert Combat Kills 460 Follower Combat Kills 1918 Prayed to X0-1V1 5000 Major X0-1V1 Interference 15200 Met Warlord at Base 500 MAIN.C Attacked Warlord 500 Warlord Defense Kills 1828 Friendly Fire -1620 Cogmind --------- Core Integrity 0/1240 Matter 145/150 Energy 49/300 System Corruption 17% Temperature Cool (9) Movement Core (50) Location -3/Research Parts ------- > --- POWER (2) -------- (None) > --- PROPULSION (6) --- (None) > --- UTILITY (9) ------ Advanced Signal Interpreter Advanced Melee Analysis Suite Core Analyzer > --- WEAPON (4) ------- Compact HERF Cannon > --- INVENTORY (5) ---- Antimatter Reactor Improved Phase Shifter Experimental Cloaking Device Advanced Point Defense System Compact HERF Cannon Peak State ------------ > --- POWER ------------ Antimatter Reactor Improved Quantum Reactor > --- PROPULSION ------- Combat Gravmag System Improved Antigrav System Cooled Antigrav System Antigrav Array Combat Linear Gravjet > --- UTILITY ---------- Enhanced Optical Array Advanced Sensor Array Advanced Signal Interpreter Advanced Melee Analysis Suite Core Analyzer Experimental Cloaking Device Improved Medium Armor Plating Thermal Barrier X0-1V1's Piety Tracker > --- WEAPON ----------- Mini Smartbomb Launcher Kinetic Spear Plasma Lance Enhanced Force Lance > --- INVENTORY -------- Cooled Antigrav System Advanced Gravity Neutralizer Improved Transmission Jammer Vortex Rail [Rating: 158] Favorites ----------- Power Light Nuclear Core Engine Light Ion Engine Power Core Light Nuclear Core Reactor Antimatter Reactor Propulsion Combat Gravmag System Treads Light Treads Leg Carbon-fiber Leg Wheel Wheel Hover Unit Combat Gravmag System Flight Unit Improved VTOL Module Utility X0-1V1's Piety Tracker Device X0-1V1's Piety Tracker Storage High-capacity Storage Unit Processor Advanced Melee Analysis Suite Hackware Hacking Suite Protection Improved Medium Armor Plating Weapon Enhanced Force Lance Energy Gun Medium Laser Energy Cannon Compact HERF Cannon Ballistic Gun Assault Rifle Ballistic Cannon Assault Cannon Launcher EMP Blaster Impact Weapon Powered Hammer Slashing Weapon Scythe Piercing Weapon Enhanced Force Lance Build | -11 -10 -10 -9 -9 -8 -7 -7 -7 -6 -5 -5 -4 -4 -4 -4 -4 -4 -3 -3 ------- Run | Yrd Mat Min Mat Min Mat Fac Was Fac Fac Fac Ext Fac Was Fac Upp Upp War Pro Res Slots Evolved 14 | . . . 2 . 2 2 . . 2 2 . 2 . . . . . . 2 Power . | . . . . . . . . . . . . . . . . . . . . Propulsion 4 | . . . . . 1 . . . 1 1 . . . . . . . . 1 Utility 8 | . . . 1 . 1 1 . . 1 1 . 2 . . . . . . 1 Weapon 2 | . . . 1 . . 1 . . . . . . . . . . . . . Parts Attached 226 | 7 7 3 33 3 32 17 . 22 10 10 15 13 7 4 2 3 15 4 19 Power 36 | 1 1 . 8 2 3 3 . 3 3 . 3 2 1 . . 1 1 1 3 Engine 18 | 1 . . 4 2 3 . . 2 2 . 3 1 . . . . . . . Core 12 | . 1 . 4 . . 3 . 1 1 . . 1 1 . . . . . . Reactor 6 | . . . . . . . . . . . . . . . . 1 1 1 3 Propulsion 68 | 2 2 1 7 1 14 3 . 6 6 3 3 5 1 1 . 1 2 1 9 Treads 6 | . . . 1 1 3 . . 1 . . . . . . . . . . . Leg 6 | . . . . . 4 . . . . . 2 . . . . . . . . Wheel 20 | 2 2 1 5 . 6 3 . 1 . . . . . . . . . . . Hover 24 | . . . . . . . . 3 2 . . 4 1 1 . 1 2 1 9 Flight 12 | . . . 1 . 1 . . 1 4 3 1 1 . . . . . . . Utility 60 | 2 3 1 1 . 4 3 . 9 1 6 4 6 2 1 2 1 8 1 5 Device 39 | 1 2 1 1 . 4 2 . 6 1 4 2 2 2 1 1 . 7 . 2 Storage 6 | 1 1 . . . . . . . . 1 . . . . . . 1 . 2 Processor 12 | . . . . . . 1 . 2 . 1 2 3 . . 1 1 . . 1 Hackware 1 | . . . . . . . . 1 . . . . . . . . . . . Protection 2 | . . . . . . . . . . . . 1 . . . . . 1 . Artifact . | . . . . . . . . . . . . . . . . . . . . Weapon 62 | 2 1 1 17 . 11 8 . 4 . 1 5 . 3 2 . . 4 1 2 Energy Gun 23 | 1 1 1 9 . 3 4 . 1 . . . . . . . . 3 . . Energy Cannon 3 | . . . . . . 1 . . . . . . 1 . . . . . 1 Ballistic Gun 11 | 1 . . 3 . 6 1 . . . . . . . . . . . . . Ballistic Cannon 3 | . . . . . 1 1 . 1 . . . . . . . . . . . Launcher 10 | . . . 5 . 1 1 . . . 1 1 . . . . . . . 1 Special Weapon . | . . . . . . . . . . . . . . . . . . . . Impact Weapon 1 | . . . . . . . . 1 . . . . . . . . . . . Slashing Weapon 6 | . . . . . . . . 1 . . 4 . . 1 . . . . . Piercing Weapon 5 | . . . . . . . . . . . . . 2 1 . . 1 1 . Special Melee Weapon . | . . . . . . . . . . . . . . . . . . . . Unidentified Prototypes 24 | . 1 . 3 . 3 1 . 1 . 3 . 1 . 2 . . 8 . 1 Corrupted Parts 3 | . . . 1 1 . . . . 1 . . . . . . . . . . System Corruption 15 | . . . 5 4 . . . . 6 . . . . . . . . . . Parts Lost 120 | . 2 3 16 3 16 7 3 17 . 3 16 1 . 2 2 4 . 1 24 Power 24 | . 1 . 6 2 2 1 . 4 . 1 3 1 . . . 2 . . 1 Propulsion 42 | . . 1 4 . 7 5 . 5 . 1 6 . . 1 1 . . 1 10 Utility 26 | . . 1 1 . 3 1 1 3 . 1 5 . . 1 1 1 . . 7 Weapon 28 | . 1 1 5 1 4 . 2 5 . . 2 . . . . 1 . . 6 Highest Loss Streak 24 | . 2 2 6 2 14 2 3 9 . 1 6 1 . 1 2 2 . 1 24 To Critical Strikes 1 | . . . . . . . . . . . 1 . . . . . . . . Average Backups 11 | 2 17 19 19 16 18 18 18 11 4 5 7 4 3 4 4 4 4 4 10 Power . | . 1 1 . . . 1 2 1 . . . . . . . 1 . 1 2 Propulsion 2 | 1 6 6 4 2 3 1 1 1 . . . . . . . . . . 2 Utility 5 | . 6 7 6 7 8 9 9 6 3 4 4 2 2 2 2 3 2 2 3 Weapon 3 | . 2 5 7 7 5 5 6 2 1 1 1 1 1 1 1 . 2 1 2 Tool/Special . | . . . . . . . . . . . . . . . . . . . . Unused Backups 41 | . 1 1 7 . . . . 9 1 2 6 2 . 3 1 . . . 8 Power 3 | . 1 . . . . . . . . . 1 . . . . . . . 1 Propulsion 10 | . . . 4 . . . . . . . 3 . . . . . . . 3 Utility 19 | . . 1 . . . . . 6 1 1 2 2 . 2 1 . . . 3 Weapon 9 | . . . 3 . . . . 3 . 1 . . . 1 . . . . 1 Tool/Special . | . . . . . . . . . . . . . . . . . . . . Average Slot Usage (%) 88 | . 99 96 92 97 88 88 74 67 92 93 68 71 93 97 88 85 87 96 84 Engine 5 | . 6 . 13 10 15 6 . 2 7 4 3 . 2 . . . . . . Core 4 | . 7 14 4 9 . 6 12 5 . 4 . 4 4 10 10 5 . . . Reactor 1 | . . . . . . . . . . . . . . . . . 8 10 8 Treads 1 | . . . . 11 5 7 . 1 . . . . . . . . . . . Leg 1 | . . . . . 9 . . . . . 1 7 . . . . . . . Wheel 9 | . 27 28 19 22 14 17 16 5 . . . . . . . . . . . Hover 8 | . . . . . . . . 5 7 . . 5 22 27 23 24 26 25 21 Flight 2 | . . . . . . . . 6 24 32 13 4 4 1 . . . . . Device 15 | . 14 12 18 11 15 14 9 10 19 20 18 12 9 15 14 14 15 21 14 Storage 5 | . 14 14 10 11 9 6 6 3 . 2 2 . . . . . . . 3 Processor 9 | . . . . . . 4 6 8 12 8 10 20 22 21 21 24 23 18 18 Energy Gun 5 | . 14 17 10 2 5 17 10 5 . . . . . . . . . . . Ballistic Gun 2 | . 13 8 1 . 9 1 4 . . . . . . . . . . . . Launcher 3 | . . . 12 19 . 2 . . . . . . . . . . 1 1 . Impact Weapon 1 | . . . . . . . . 5 12 10 7 . . . . . . . . Slashing Weapon 1 | . . . . . . . . 2 5 4 5 10 8 4 5 2 . . . Piercing Weapon 3 | . . . . . . . . . . . . . 3 6 10 10 10 15 12 Peak Build Rating 158 | 7 23 23 39 28 40 49 50 46 55 70 62 98 134 130 123 123 146 148 158 Average Rating 64 | 5 10 21 30 27 33 42 46 36 51 62 50 79 120 126 116 111 120 143 138 On Entrance 63 | . 7 23 22 28 27 35 49 36 46 55 60 51 95 127 113 112 101 146 140 Avg Prop Armor Cover (%) 9 | . . . 9 9 12 15 . 12 12 . 20 16 8 3 2 6 6 . 3 Naked Turns . | . . . . . . . . . . . . . . . . . . . . Heaviest Build 92 | 15 50 50 69 60 66 70 69 70 24 35 35 24 56 57 56 48 63 74 92 Greatest Support 92 | 32 32 26 36 27 57 47 37 43 32 40 37 71 73 84 63 63 91 75 92 Greatest Overweight (x) 6 | . 2 1 6 2 4 3 2 2 . . 1 . . . . . . 1 1 Average Overweight (x) . | . . 1 2 1 1 1 1 . . . . . . . . . . . . Largest Inventory Capacity 20 | 8 20 20 20 20 20 20 20 20 5 10 10 5 5 5 5 5 5 5 15 Average Capacity 13 | 7 19 20 20 20 20 20 20 12 5 7 7 5 5 5 5 5 5 5 11 Most Carried 20 | 6 20 20 20 19 20 20 20 20 5 10 10 5 5 5 5 5 5 5 15 Average Carried 12 | 2 17 19 19 17 19 19 19 12 4 6 7 4 4 4 4 4 4 4 11 Final Capacity 20 | 8 20 20 20 20 20 20 20 5 5 10 5 5 5 5 5 5 5 5 5 Final Carried 20 | 6 20 19 16 19 18 20 20 5 5 10 5 5 5 5 5 5 5 5 5 Scrap Suit Usage (%) 1 | . . . . . . . . 20 . . . . . . . . . . . Parts Cannibalized 1 | . . . . . . . . 1 . . . . . . . . . . . Class Distribution -------------------- 27% | Gladiator 23% | Mutant 18% | Scavenger-Mutant 6% | Scavenger-Bomber 3% | Scavenger-Ninja 3% | Scavenger-Gladiator 3% | Gunner 3% | Commander-Gladiator Dominant Class ---------------- Mutant | -10/Materials Mutant | -10/Mines Mutant | -9/Materials Scavenger-Mutant | -9/Mines Scavenger-Mutant | -8/Materials Scavenger-Bomber | -7/Factory Scavenger-Bomber | -7/Waste Scavenger-Mutant | -7/Factory Scavenger-Sprinter | -6/Factory Scavenger-Sprinter | -5/Factory Gladiator | -5/Extension Gladiator | -4/Factory Gladiator | -4/Waste Gladiator | -4/Factory Gladiator | -4/Upper Caves Gladiator | -4/Upper Caves Gladiator | -4/Warlord Scavenger-Gladiator | -3/Proximity Caves Scavenger-Ninja | -3/Research Resources | -11 -10 -10 -9 -9 -8 -7 -7 -7 -6 -5 -5 -4 -4 -4 -4 -4 -4 -3 -3 ----------- Run | Yrd Mat Min Mat Min Mat Fac Was Fac Fac Fac Ext Fac Was Fac Upp Upp War Pro Res Matter Collected 6346 | 306 233 58 602 278 734 431 . 318 100 149 363 143 355 405 80 533 750 209 299 Remotely . | . . . . . . . . . . . . . . . . . . . . Salvage Created 11025 | 111 399 161 1933 327 1247 978 . 972 115 450 533 160 173 273 179 511 579 282 1642 Parts 619 | 11 21 13 121 29 67 44 . 36 8 21 14 14 8 18 8 36 21 21 108 Haulers Intercepted 13 | . 2 . 5 . 2 1 . . . 1 . . . . . . . . 2 Recyclers Shooed 3 | . . . . . 1 . . 2 . . . . . . . . . . . Parts Field Recycled . | . . . . . . . . . . . . . . . . . . . . Retrieved Matter . | . . . . . . . . . . . . . . . . . . . . Parts Self-Destructed 51 | . . . . . . . . . . . . . . . 4 30 . 17 . Prevented . | . . . . . . . . . . . . . . . . . . . . Parts Restored . | . . . . . . . . . . . . . . . . . . . . Kills | -11 -10 -10 -9 -9 -8 -7 -7 -7 -6 -5 -5 -4 -4 -4 -4 -4 -4 -3 -3 ------- Run | Yrd Mat Min Mat Min Mat Fac Was Fac Fac Fac Ext Fac Was Fac Upp Upp War Pro Res Combat Hostiles Destroyed 188 | . 6 6 42 12 22 11 . 11 1 3 8 1 . 2 5 11 17 6 24 Melee 37 | . . . . . . . . 3 1 2 6 1 . 2 . 5 . 3 14 Guns 67 | . 6 6 22 1 20 7 . 4 . . . . . . . . . . 1 Cannons 3 | . . . . . . . . 3 . . . . . . . . . . . AOE 73 | . . . 20 10 1 2 . . . . . . . . 5 6 17 3 9 Classes Destroyed 20 | 2 3 1 4 1 2 1 . 1 1 . . . . . 2 . 2 . . Worker 24 | . . . 2 . 3 4 . 3 2 4 . 3 . 1 . . . . 2 Builder 9 | . . . 4 . 1 . . 1 . . 1 . . . . . . . 2 Tunneler 8 | 3 . . . . . 2 . . 2 . . 1 . . . . . . . Hauler 13 | . 2 . 5 . 2 1 . . . 1 . . . . . . . . 2 Recycler 14 | 1 . . . . 2 4 . 4 . . 1 . . 1 . . . . 1 Mechanic 3 | . . . . . 1 1 . . . . . 1 . . . . . . . Operator 6 | . . . 1 . . . . 2 . . 1 . . 2 . . . . . Watcher 14 | . 1 . 1 . 1 1 . 2 1 1 . . . . . . . . 6 Swarmer 65 | . . 3 20 8 3 . . . . . 1 1 . . 4 4 6 3 12 Cutter 2 | . . . . . . . . . 1 . . . . 1 . . . . . Grunt 62 | . 6 3 13 3 12 6 . 3 . . 5 . . . . 3 8 . . Brawler 4 | . . . . . 2 . . 1 . . . . . . . . 1 . . Duelist 4 | . . . . 1 1 . . 1 . 1 . . . . . . . . . Protector 1 | . . . . . . . . . . . . . . . . . 1 . . Sentry 28 | . . . 9 . 4 3 . 4 . 2 2 . . . . . . 2 2 Demolisher 1 | . . . . . . . . . . . . . . . 1 . . . . Specialist 1 | . . . . . . . . . . . . . . . . . 1 . . Hunter 6 | . . . . . . 2 . . . . . . . . . 2 . . 2 Programmer 14 | . . . . . . . . 2 . . . . . 1 . 2 . 1 8 Packrat 1 | . . . . . . . . . . . . . . . 1 . . . . Samaritan 2 | . . . . . . . . . . . . . . . 1 1 . . . Wasp 2 | . . . . . . . . . . . . . 2 . . . . . . Thug 3 | . . . . . . . . . . . . . 2 . . . 1 . . Best Kill Streak 9 | 3 2 3 9 3 6 7 . 4 2 4 4 4 . 2 4 6 9 3 7 Combat Bots Only 9 | . 2 3 8 3 5 4 . 3 1 1 4 1 . 1 4 6 9 3 6 Max Kills in Single Turn 4 | 1 1 1 4 3 2 1 . 2 1 2 1 1 1 1 3 4 3 2 4 Gunslinging 1 | . . . 1 . . . . . . . . . . . . . . . . Exploded 4 | . . . 4 3 1 1 . . . . . . . . 3 4 3 2 4 Melee 2 | . . . . . . . . 1 1 1 1 1 . 1 . 1 . 1 2 Uniques/NPCs Destroyed . | . . . . . . . . . . . . . . . . . . . . Combat | -11 -10 -10 -9 -9 -8 -7 -7 -7 -6 -5 -5 -4 -4 -4 -4 -4 -4 -3 -3 -------- Run | Yrd Mat Min Mat Min Mat Fac Was Fac Fac Fac Ext Fac Was Fac Upp Upp War Pro Res Hostile Shots Fired 1504 | . 36 29 157 21 152 128 1 286 16 40 98 5 . 39 16 54 26 13 387 Missed 564 | . 9 5 47 9 48 50 . 113 9 21 39 3 . 18 6 21 9 4 153 Hits 940 | . 27 24 110 12 104 78 1 173 7 19 59 2 . 21 10 33 17 9 234 Melee 52 | . . . . . 10 . 1 3 . . 1 . . 1 . . 3 . 33 Projectile 888 | . 27 24 110 12 94 78 . 170 7 19 58 2 . 20 10 33 14 9 201 AOE 5 | . . . . . . . . . . . 1 . . 1 3 . . . . Critical Strikes 38 | . 1 . 1 1 10 1 . 4 . . 7 . . 1 . 3 1 . 8 Part Disruptions 1 | . . . . . . . . . . . . . . . . 1 . . . Damage Taken 14255 | . 354 225 1526 356 2005 944 134 1670 135 360 1098 178 . 411 356 543 246 201 3513 Core 3239 | . 100 65 202 23 306 146 6 419 30 128 283 47 . 47 20 87 55 23 1252 Absorbed by Shields 834 | . . . . . . . . . . . . . . . . . 184 . 650 Ignored by Resistances 379 | . . . . . . . . . . . . . . . 13 . 83 13 270 Regen/Repaired (Parts) 446 | . . . . . . . . 51 . . . . 196 58 . . 141 . . Core Remaining (%) 67 | 100 . 71 . 93 37 . . 10 96 . 56 . . . . . . 74 . Volleys Fired 378 | 12 42 17 76 16 91 56 . 27 . . 1 . . . 2 3 25 2 8 Largest 4 | 2 2 2 4 2 2 3 . 3 . . 1 . . . 1 1 1 1 1 Hottest 212 | 70 70 90 212 78 128 203 . 212 . . 80 . . . 80 80 80 80 80 Shots Fired 763 | 24 84 33 179 31 170 139 . 62 . . 1 . . . 2 3 25 2 8 Gun 604 | 24 84 33 132 6 146 129 . 45 . . . . . . . . 1 . 4 Cannon 40 | . . . . . 23 . . 17 . . . . . . . . . . . Launcher 119 | . . . 47 25 1 10 . . . . 1 . . . 2 3 24 2 4 Special . | . . . . . . . . . . . . . . . . . . . . Kinetic 257 | 12 42 10 32 . 128 16 . 17 . . . . . . . . . . . Thermal 257 | 12 42 23 2 . 20 113 . 45 . . . . . . . . . . . Explosive 36 | . . . . . . . . . . . 1 . . . 2 3 24 2 4 Electromagnetic 208 | . . . 145 31 22 10 . . . . . . . . . . . . . Entropic 5 | . . . . . . . . . . . . . . . . . 1 . 4 Robot Hit Streak 13 | 5 10 7 11 4 11 13 . 11 . . . . . . . . 5 6 7 Robot Miss Streak 6 | 2 3 3 6 2 4 5 . 3 . . . . . . . . . . 1 Penetration Max 1 | . . . . . . . . 1 . . . . . . . . . . 1 Secondary Targets 11 | . . . 6 . 4 1 . . . . . . . . . . . . . Max Gunslinging Chain 1 | . . . 1 . 1 1 . . . . . . . . . . . . . Shots Hit Robots 691 | 15 56 18 105 14 122 102 . 76 9 16 41 6 7 11 5 10 2 8 68 Core Hits 480 | 5 21 9 69 13 58 85 . 39 2 7 12 4 4 5 6 20 65 7 49 Critical Kills . | . . . . . . . . . . . . . . . . . . . . Critical Parts Destroyed 8 | . . . . . . . . 2 1 2 3 . . . . . . . . Critical Strikes 32 | . . . 1 . 2 1 . 3 2 2 4 . . 2 1 . . . 14 Burn 2 | . . . . . 1 1 . . . . . . . . . . . . . Corrupt 2 | . . . 1 . 1 . . . . . . . . . . . . . . Smash 9 | . . . . . . . . 3 1 2 3 . . . . . . . . Sever 3 | . . . . . . . . . 1 . 1 . . . 1 . . . . Impale 16 | . . . . . . . . . . . . . . 2 . . . . 14 Melee Attacks 312 | . . . . . . . . 46 17 33 54 11 9 19 6 13 1 11 92 Impact 71 | . . . . . . . . 33 10 11 17 . . . . . . . . Slashing 100 | . . . . . . . . 13 7 22 37 11 3 3 2 2 . . . Piercing 141 | . . . . . . . . . . . . . 6 16 4 11 1 11 92 Sneak Attacks 45 | . . . . . . . . 4 6 8 3 5 7 3 2 1 . 1 5 Combat Hostiles 2 | . . . . . . . . . . . 1 . . . . . . 1 . Follow-up Attacks 48 | . . . . . . . . 4 2 4 10 . 1 3 1 1 . 2 20 Damage Inflicted 28346 | 181 716 218 2507 688 2551 1968 70 2309 557 938 1680 467 787 922 665 1045 4601 745 4731 Guns 7119 | 181 716 218 1398 25 2041 1622 . 694 . . . . . . . . . . 224 Cannons 797 | . . . . . 258 . 70 356 . . . . 113 . . . . . . Explosions 9412 | . . . 1109 663 252 346 . . . . 44 . . . 328 416 4601 319 1334 Melee 11018 | . . . . . . . . 1259 557 938 1636 467 674 922 337 629 . 426 3173 Ramming . | . . . . . . . . . . . . . . . . . . . . Kinetic 3408 | 90 420 56 426 . 1740 250 70 356 . . . . . . . . . . . Thermal 3507 | 91 296 162 314 74 463 1372 . 694 . . . . 41 . . . . . . Explosive 7042 | . . . . . . . . . . . 44 . . . 328 416 4601 319 1334 Electromagnetic 3075 | . . . 1767 614 348 346 . . . . . . . . . . . . . Impact 2210 | . . . . . . . . 948 301 335 626 . . . . . . . . Slashing 3125 | . . . . . . . . 311 256 603 1010 467 82 272 124 . . . . Piercing 5683 | . . . . . . . . . . . . . 592 650 213 629 . 426 3173 Entropic 224 | . . . . . . . . . . . . . . . . . . . 224 Phasic 72 | . . . . . . . . . . . . . 72 . . . . . . Highest Corruption 17 | . . . 9 15 11 1 8 7 6 2 2 . . . 2 5 5 3 17 Average Corruption 5 | . . . 4 10 6 1 8 4 6 2 1 . . . 2 4 5 2 7 Corruption Purged . | . . . . . . . . . . . . . . . . . . . . Corruption Blocked . | . . . . . . . . . . . . . . . . . . . . Effects 99 | . . . 21 30 9 1 . 9 6 . 8 . . . 1 6 . . 8 Message Errors 25 | . . . 6 5 4 . . 1 4 . 1 . . . . 1 . . 3 Matter Fused 24 | . . . 1 13 1 . . 2 2 . 2 . . . . 2 . . 1 Heat Flow Errors 15 | . . . 4 3 2 . . 4 . . 1 . . . 1 . . . . Energy Discharges 11 | . . . 4 2 . . . 1 . . 2 . . . . 1 . . 1 Parts Rejected 3 | . . . 1 . . . . . . . . . . . . . . . 2 Data Loss (minor) 12 | . . . 1 5 1 . . 1 . . 1 . . . . 2 . . 1 Data Loss (major) 1 | . . . 1 . . . . . . . . . . . . . . . . Alerts 6 | . . . 2 2 . 1 . . . . 1 . . . . . . . . Weapon Failures 2 | . . . 1 . 1 . . . . . . . . . . . . . . Overload Shots . | . . . . . . . . . . . . . . . . . . . . Overflow Damage 1815 | . . . 16 22 17 . . 235 190 254 209 101 . 286 42 . 29 1 413 Projectiles . | . . . . . . . . . . . . . . . . . . . . Explosions 242 | . . . 16 22 17 . . . . . . . . . 1 . 29 1 156 Melee 1573 | . . . . . . . . 235 190 254 209 101 . 286 41 . . . 257 Knockbacks 7 | . . . . . . . . 3 1 3 . . . . . . . . . Impact 4 | . . . . . . . . 1 1 2 . . . . . . . . . Kinetic 2 | . . . . . . . . 2 . . . . . . . . . . . Secondary 1 | . . . . . . . . . . 1 . . . . . . . . . Self-Inflicted Damage 845 | . . . 305 262 46 74 . . . . . . . . . . . . 158 Shots 40 | . . . 19 14 1 4 . . . . . . . . . . . . 2 Rammed . | . . . . . . . . . . . . . . . . . . . . Targets Rammed . | . . . . . . . . . . . . . . . . . . . . Kicked . | . . . . . . . . . . . . . . . . . . . . Crushed . | . . . . . . . . . . . . . . . . . . . . Highest Temperature 495 | 54 240 174 243 255 192 314 . 495 9 154 124 . 5 52 243 301 219 71 36 Average Temperature 75 | 21 64 72 77 56 58 117 . 119 5 44 48 . 2 17 66 129 89 18 7 Received Heat Transfer 2889 | . 222 66 312 . 909 222 . 486 12 18 327 . . 84 29 78 38 9 77 Effects 6 | . . . . 3 . . . 2 . . . . . . 1 . . . . Energy Bleed 1 | . . . . . . . . . . . . . . . 1 . . . . Interference 4 | . . . . 3 . . . 1 . . . . . . . . . . . Short Circuit 1 | . . . . . . . . 1 . . . . . . . . . . . Siege Activations . | . . . . . . . . . . . . . . . . . . . . Martial Activations . | . . . . . . . . . . . . . . . . . . . . Shielding Activations . | . . . . . . . . . . . . . . . . . . . . Robots Disrupted 1 | . . . . . 1 . . . . . . . . . . . . . . Combat Hostiles 1 | . . . . . 1 . . . . . . . . . . . . . . Robots Corrupted 12 | . . . 1 1 . 2 . 4 1 1 2 . . . . . . . . Combat Hostiles 6 | . . . . 1 . 2 . 1 . . 2 . . . . . . . . Parts Fried 30 | . . . 11 . 1 3 . 7 2 3 3 . . . . . . . . Impact Corruptions 23 | . . . . . . . . 9 4 4 6 . . . . . . . . Robots Melted 1 | . . . . . 1 . . . . . . . . . . . . . . Combat Hostiles 1 | . . . . . 1 . . . . . . . . . . . . . . Parts Melted 6 | . . . 2 . 1 1 . 2 . . . . . . . . . . . Heat Transferred 7218 | 259 888 469 537 150 916 2416 . 1546 . . . . 37 . . . . . . Parts Sabotaged . | . . . . . . . . . . . . . . . . . . . . Parts Stolen 1 | . . . . . . . . . . . . . . . . . . . 1 Parts Stripped . | . . . . . . . . . . . . . . . . . . . . Power Chain Reactions 26 | . . . 17 5 3 1 . . . . . . . . . . . . . Alert | -11 -10 -10 -9 -9 -8 -7 -7 -7 -6 -5 -5 -4 -4 -4 -4 -4 -4 -3 -3 ------- Run | Yrd Mat Min Mat Min Mat Fac Was Fac Fac Fac Ext Fac Was Fac Upp Upp War Pro Res Maximum Alert Level 3 | . . . 3 2 3 1 . 1 2 2 2 1 . 2 . . . . 1 Low Security (%) 37 | 100 100 100 13 . . . 100 96 1 30 12 61 100 3 . . . . 36 Level 1 33 | . . . 44 30 4 100 . 3 75 69 75 38 . 22 . . . . 63 Level 2 25 | . . . 35 69 78 . . . 23 . 11 . . 73 . . . . . Level 3 3 | . . . 6 . 17 . . . . . . . . . . . . . . Level 4 . | . . . . . . . . . . . . . . . . . . . . Level 5 . | . . . . . . . . . . . . . . . . . . . . High Security . | . . . . . . . . . . . . . . . . . . . . Max Security . | . . . . . . . . . . . . . . . . . . . . Peak Influence 840 | 10 40 60 840 573 739 399 120 205 417 405 462 259 81 606 . . . . 358 Initial 324 | . . . 7 324 217 324 120 . 56 155 191 163 81 . . . . . . Average 287 | 1 7 19 380 449 637 321 57 110 307 267 313 175 30 456 . . . . 198 Influence Increases 9609 | 20 198 145 1580 597 1142 367 . 644 432 405 864 201 72 1003 215 260 377 140 947 Destroy 0b10 Robot/C 4860 | . 120 120 840 300 620 220 . 220 120 60 520 20 . 440 100 220 340 120 480 Destroy 0b10 Robot/NC 515 | 20 15 . 65 30 60 65 . 60 25 30 15 25 . 35 . . 5 . 65 Destroy Leader 838 | . 36 10 202 50 136 44 . 54 22 14 40 . . 64 10 40 . 20 96 Allied During Kill 586 | . . . . 12 23 . . . 32 . 172 . . 330 . . 17 . . Successful Hack 48 | . 12 . 12 . 8 . . . 16 . . . . . . . . . . Disable Machine 300 | . . . 60 105 30 . . . 15 . 15 . . 45 . . . . 30 Anti-Garrison Action 200 | . . . . . . . . 200 . . . . . . . . . . . Destroy Structure 501 | . . . 60 55 53 8 . 5 2 16 42 6 72 74 . . . . 108 Partial Spotted 165 | . . . 30 . . . . 30 15 45 . . . 15 . . . . 30 Lose Combat Pursuer 750 | . 15 15 75 45 60 30 . 75 15 240 60 . . . 105 . 15 . . Miscellaneous 846 | . . . 236 . 152 . . . 170 . . 150 . . . . . . 138 Influence Decreases 9357 | 20 198 125 768 872 986 737 343 529 229 333 921 300 306 458 453 249 441 394 695 Entered New Map 3051 | . . . 13 508 340 389 223 . 59 163 199 170 153 . 203 59 318 254 . Time Decay 4256 | 20 178 105 495 334 446 278 40 359 110 140 302 120 113 238 230 150 103 140 355 Search Patrol Dispatched 200 | . . . 100 . . . . . . . . . . . . . . . 100 Lost Part 1170 | . 20 20 160 30 160 70 20 170 . 30 160 10 . 20 20 40 . . 240 Lost Ally 680 | . . . . . 40 . 60 . 60 . 260 . 40 200 . . 20 . . Squads Dispatched 34 | . 2 . 4 . 3 3 . 8 1 3 2 . . 5 . . . . 3 Investigation 10 | . 2 . 2 . 1 . . 4 . 1 . . . . . . . . . Extermination 6 | . . . . . . . . 2 1 1 . . . . . . . . 2 Reinforcement 12 | . . . 2 . . 1 . 2 . 1 1 . . 4 . . . . 1 Assault 4 | . . . . . 2 . . . . . 1 . . 1 . . . . . Garrison 2 | . . . . . . 2 . . . . . . . . . . . . . Intercept . | . . . . . . . . . . . . . . . . . . . . Searches Triggered 2 | . . . 1 . . . . . . . . . . . . . . . 1 Construction Impeded 2 | . . . . . . . . . . . 1 . . . . . . . 1 Haulers Reinforced 2 | . . . . . . 1 . . . . . . . 1 . . . . . Active Scanning Responses . | . . . . . . . . . . . . . . . . . . . . Cargo Convoy Interrupts . | . . . . . . . . . . . . . . . . . . . . Stealth | -11 -10 -10 -9 -9 -8 -7 -7 -7 -6 -5 -5 -4 -4 -4 -4 -4 -4 -3 -3 --------- Run | Yrd Mat Min Mat Min Mat Fac Was Fac Fac Fac Ext Fac Was Fac Upp Upp War Pro Res Distress Signals 26 | . 1 . 9 . 4 . . . . 2 6 1 . 1 . . 1 . 1 Communications Jammed 93 | . . . . . . . . . . . . . . 93 . . . . . Distress Signals 93 | . . . . . . . . . . . . . . 93 . . . . . Times Spotted 414 | . 14 7 56 16 46 23 6 22 10 32 30 2 11 21 12 11 54 6 35 Peak Tracking Total 18 | . 2 3 7 3 7 4 6 4 4 18 6 2 5 5 3 5 14 3 10 Tactical Retreats 30 | . 1 1 4 2 3 1 . 3 1 5 4 . . . 4 . 1 . . Traps | -11 -10 -10 -9 -9 -8 -7 -7 -7 -6 -5 -5 -4 -4 -4 -4 -4 -4 -3 -3 ------- Run | Yrd Mat Min Mat Min Mat Fac Was Fac Fac Fac Ext Fac Was Fac Upp Upp War Pro Res Traps Triggered 13 | . 3 . 2 . 2 1 . 1 . . 1 1 . 1 . . . . 1 Indirectly . | . . . . . . . . . . . . . . . . . . . . Trap Hack Attempts . | . . . . . . . . . . . . . . . . . . . . Triggered . | . . . . . . . . . . . . . . . . . . . . Disarmed . | . . . . . . . . . . . . . . . . . . . . Reprogrammed . | . . . . . . . . . . . . . . . . . . . . Reused . | . . . . . . . . . . . . . . . . . . . . Traps Extracted . | . . . . . . . . . . . . . . . . . . . . Installed . | . . . . . . . . . . . . . . . . . . . . Triggered . | . . . . . . . . . . . . . . . . . . . . Machines | -11 -10 -10 -9 -9 -8 -7 -7 -7 -6 -5 -5 -4 -4 -4 -4 -4 -4 -3 -3 ---------- Run | Yrd Mat Min Mat Min Mat Fac Was Fac Fac Fac Ext Fac Was Fac Upp Upp War Pro Res Machines Disabled 22 | . . . 4 7 2 . . . 1 . 1 . . 3 1 . 1 . 2 Max in Single Turn 7 | . . . 1 7 1 . . . 1 . . . . . 1 . 1 . 1 Garrison Access 3 | . . . . . . . . 1 . 1 . . . 1 . . . . . Energy Cycler 2 | . . . . . . . . . . . 2 . . . . . . . . Machines Repaired . | . . . . . . . . . . . . . . . . . . . . Machines Dismantled . | . . . . . . . . . . . . . . . . . . . . Machines Sabotaged . | . . . . . . . . . . . . . . . . . . . . Overloaded Fab Kills . | . . . . . . . . . . . . . . . . . . . . Hacking | -11 -10 -10 -9 -9 -8 -7 -7 -7 -6 -5 -5 -4 -4 -4 -4 -4 -4 -3 -3 --------- Run | Yrd Mat Min Mat Min Mat Fac Was Fac Fac Fac Ext Fac Was Fac Upp Upp War Pro Res Machines Accessed 27 | . 5 . 3 . 3 2 . 3 2 2 . . . 2 . . 4 . 1 Terminals 13 | . 5 . 3 . 3 . . . 1 . . . . 1 . . . . . Fabricators . | . . . . . . . . . . . . . . . . . . . . Repair Stations 2 | . . . . . . . . 2 . . . . . . . . . . . Recycling Units . | . . . . . . . . . . . . . . . . . . . . Scanalyzers 1 | . . . . . . 1 . . . . . . . . . . . . . Garrison Access 7 | . . . . . . 1 . 1 1 2 . . . 1 . . . . 1 Total Hacks 54 | . 12 . 5 . 5 3 . 6 5 3 . . . 6 . . 8 . 1 Successful 25 | . 6 . 4 . 1 . . 3 1 1 . . . 1 . . 8 . . Failed 29 | . 6 . 1 . 4 3 . 3 4 2 . . . 5 . . . . 1 Catastrophic 8 | . 2 . . . 1 2 . . 1 . . . . 1 . . . . 1 Database Lockouts . | . . . . . . . . . . . . . . . . . . . . Manual 34 | . 13 . 5 . 5 . . 6 5 . . . . . . . . . . Terminals 29 | . 12 . 5 . 5 . . . 4 . . . . 3 . . . . . Fabricators . | . . . . . . . . . . . . . . . . . . . . Repair Stations 2 | . . . . . . . . 2 . . . . . . . . . . . Recycling Units . | . . . . . . . . . . . . . . . . . . . . Scanalyzers 1 | . . . . . . 1 . . . . . . . . . . . . . Garrison Access 14 | . . . . . . 2 . 4 1 3 . . . 3 . . . . 1 Terminal Hacks 10 | . . . 1 . 1 . . . . . . . . . . . 8 . . Record 7 | . . . . . . . . . . . . . . . . . 7 . . Open Door 1 | . . . . . . . . . . . . . . . . . 1 . . Branch Access Points 2 | . . . 1 . 1 . . . . . . . . . . . . . . Fabricator Hacks . | . . . . . . . . . . . . . . . . . . . . Repair Station Hacks . | . . . . . . . . . . . . . . . . . . . . Recycling Unit Hacks . | . . . . . . . . . . . . . . . . . . . . Scanalyzer . | . . . . . . . . . . . . . . . . . . . . Garrison Access Hacks 2 | . . . . . . . . . . 1 . . . 1 . . . . . Seal Access 2 | . . . . . . . . . . 1 . . . 1 . . . . . Unauthorized Hacks 13 | . 6 . 3 . . . . 3 1 . . . . . . . . . . Terminals 10 | . 6 . 3 . . . . . 1 . . . . . . . . . . Assimilate 1 | . . . . . . . . . 1 . . . . . . . . . . Botnet 1 | . . . 1 . . . . . . . . . . . . . . . . Skim 7 | . 5 . 2 . . . . . . . . . . . . . . . . Sabotage 1 | . 1 . . . . . . . . . . . . . . . . . . Fabricators . | . . . . . . . . . . . . . . . . . . . . Repair Stations 2 | . . . . . . . . 2 . . . . . . . . . . . Patch 2 | . . . . . . . . 2 . . . . . . . . . . . Recycling Units . | . . . . . . . . . . . . . . . . . . . . Scanalyzers . | . . . . . . . . . . . . . . . . . . . . Garrison Access 1 | . . . . . . . . 1 . . . . . . . . . . . Jam 1 | . . . . . . . . 1 . . . . . . . . . . . Data Cores Recovered 4 | . . . . . . . . 1 1 . 1 . . 1 . . . . . Used . | . . . . . . . . . . . . . . . . . . . . Hacking Detections 16 | . 4 . 1 . 3 2 . 1 2 1 . . . 1 . . . . 1 Full Trace Events 1 | . . . . . . . . . . 1 . . . . . . . . . Feedback Events . | . . . . . . . . . . . . . . . . . . . . Feedback Blocked . | . . . . . . . . . . . . . . . . . . . . Robot Schematics Acquired . | . . . . . . . . . . . . . . . . . . . . Robots Built . | . . . . . . . . . . . . . . . . . . . . Authchips . | . . . . . . . . . . . . . . . . . . . . Time . | . . . . . . . . . . . . . . . . . . . . Total Robot Build Rating . | . . . . . . . . . . . . . . . . . . . . Part Schematics Acquired . | . . . . . . . . . . . . . . . . . . . . Parts Built . | . . . . . . . . . . . . . . . . . . . . Authchips . | . . . . . . . . . . . . . . . . . . . . Time . | . . . . . . . . . . . . . . . . . . . . Total Part Build Rating . | . . . . . . . . . . . . . . . . . . . . Part Studies Acquired . | . . . . . . . . . . . . . . . . . . . . Parts Repaired . | . . . . . . . . . . . . . . . . . . . . Time . | . . . . . . . . . . . . . . . . . . . . Parts Recycled . | . . . . . . . . . . . . . . . . . . . . Recycled Matter . | . . . . . . . . . . . . . . . . . . . . Retrieved Matter . | . . . . . . . . . . . . . . . . . . . . Retrieved Components . | . . . . . . . . . . . . . . . . . . . . Parts Scanalyzed . | . . . . . . . . . . . . . . . . . . . . Part Schematics Acquired . | . . . . . . . . . . . . . . . . . . . . Parts Damaged . | . . . . . . . . . . . . . . . . . . . . Bothacking | -11 -10 -10 -9 -9 -8 -7 -7 -7 -6 -5 -5 -4 -4 -4 -4 -4 -4 -3 -3 ------------ Run | Yrd Mat Min Mat Min Mat Fac Was Fac Fac Fac Ext Fac Was Fac Upp Upp War Pro Res Used RIF Installer . | . . . . . . . . . . . . . . . . . . . . Robots Hacked . | . . . . . . . . . . . . . . . . . . . . Non-combat . | . . . . . . . . . . . . . . . . . . . . Combat . | . . . . . . . . . . . . . . . . . . . . Robot Hacks Applied . | . . . . . . . . . . . . . . . . . . . . Relay Couplers Released . | . . . . . . . . . . . . . . . . . . . . Fabnet Peak Effective % . | . . . . . . . . . . . . . . . . . . . . Robots Rewired 21 | . . . . . . . . . . . 16 . . . . . 5 . . Allies Hacked 1 | . . . . . . . . . . . . . . 1 . . . . . Hacks Repelled . | . . . . . . . . . . . . . . . . . . . . Allies | -11 -10 -10 -9 -9 -8 -7 -7 -7 -6 -5 -5 -4 -4 -4 -4 -4 -4 -3 -3 -------- Run | Yrd Mat Min Mat Min Mat Fac Was Fac Fac Fac Ext Fac Was Fac Upp Upp War Pro Res Total Allies 53 | . . . . 1 3 4 . . 3 . 18 . 19 . . . 5 . . Largest Group 19 | . . . . 1 3 4 2 . 3 . 7 . 19 11 . . 5 . . Highest-Rated Group 702 | . . . . 85 85 120 60 . 123 . 220 . 702 460 . . 282 . . Highest-Rated Ally 85 | . . . . 85 85 30 30 . 41 . 41 . 50 50 . . 64 . . Total Orders . | . . . . . . . . . . . . . . . . . . . . Ally Attacks 414 | . . . . 4 33 . 6 . 21 . 129 . 90 122 . . 9 . . Total Damage 12475 | . . . . 153 944 . 95 . 830 . 2477 . 4099 3476 . . 401 . . Kills 76 | . . . . 9 11 . . . 5 . 20 . 7 23 . . 1 . . Allies Corrupted 1 | . . . . . . . . . . . 1 . . . . . . . . Allies Melted . | . . . . . . . . . . . . . . . . . . . . X0-1V1 Amusement Gains 397 | . 6 10 55 25 50 45 . 1 . . 50 . . 30 . . 40 . 85 Good Acts 89 | . . 2 5 6 8 7 7 7 3 2 6 2 9 8 6 . 1 6 4 Bad Acts 99 | . 1 2 14 1 5 4 . 5 8 9 8 3 2 3 4 6 4 7 13 Intel | -11 -10 -10 -9 -9 -8 -7 -7 -7 -6 -5 -5 -4 -4 -4 -4 -4 -4 -3 -3 ------- Run | Yrd Mat Min Mat Min Mat Fac Was Fac Fac Fac Ext Fac Was Fac Upp Upp War Pro Res Active Infowar (turns) 6091 | 28 919 . . . . . . 378 224 283 391 158 339 517 488 316 768 464 818 Optics 3868 | . . . . . . . . . . . . 158 339 517 488 316 768 464 818 Sensors 722 | . . . . . . . . . . . . . . . . . . . 722 Seismic 2223 | 28 919 . . . . . . 378 224 283 391 . . . . . . . . Cloaking 954 | . . . . . . . . . . . . . . . . . 84 286 584 Jamming 1939 | . . . . . . . . . . . . . 51 517 488 316 525 . 42 Robot Analysis Total . | . . . . . . . . . . . . . . . . . . . . Derelict Logs Recovered 6 | . . 1 . 2 . . . . . . . . . . 2 1 . . . Drone Launches . | . . . . . . . . . . . . . . . . . . . . Drone Recoveries . | . . . . . . . . . . . . . . . . . . . . Exploration | -11 -10 -10 -9 -9 -8 -7 -7 -7 -6 -5 -5 -4 -4 -4 -4 -4 -4 -3 -3 ------------- Run | Yrd Mat Min Mat Min Mat Fac Was Fac Fac Fac Ext Fac Was Fac Upp Upp War Pro Res Turns Passed 11442 | 147 953 331 1431 746 1102 610 100 864 224 283 669 241 339 517 488 316 768 464 849 Spaces Moved 11486 | 99 711 261 851 620 643 335 100 1019 432 721 866 385 430 719 497 395 831 582 989 Core 592 | 7 . . . . 5 . . 15 . . 215 332 . . . . . . 18 Treads 18 | . . . . . 13 . . 5 . . . . . . . . . . . Legs 11 | . . . . . 11 . . . . . . . . . . . . . . Wheels 3818 | 92 711 261 851 620 614 335 100 234 . . . . . . . . . . . Hover 4478 | . . . . . . . . . . . . 53 430 719 497 395 831 582 971 Flight 2569 | . . . . . . . . 765 432 721 651 . . . . . . . . Fastest Speed 21 | 50 100 105 101 95 95 95 95 34 25 21 22 40 40 49 55 66 50 45 42 Average Speed 67 | 96 106 105 126 107 112 105 97 54 28 22 35 48 47 54 59 66 59 47 49 Slowest Speed 320 | 100 130 105 170 110 250 125 110 320 34 26 105 60 55 55 67 74 66 116 121 Overloaded Moves 42 | . . . . . . . . . . . . . . . . . . . 42 Propulsion Burnouts . | . . . . . . . . . . . . . . . . . . . . Robots Hopped 19 | . . . . . . . . 1 . 7 11 . . . . . . . . Potential Cave-ins 14 | . . . . . . . 7 . . . 7 . . . . . . . . Cave-ins Triggered . | . . . . . . . . . . . . . . . . . . . . Exploration Rate (%) 50 | 4 86 42 82 98 54 12 95 31 12 22 64 14 90 21 62 60 78 64 26 Regions Visited 19 Branch Regions 7 Pre-discovered Areas 4 | . . . . 2 . . . . . . . . . . . 1 1 . . Known Exits Taken 5 | . . 1 1 . . . . . . . 1 . . . 1 . . 1 . Unknown Exits Taken 10 | 1 1 . . 1 1 . . 1 1 1 . . . 1 . 1 1 . . Scrap Searched 8 | . . 1 . 1 . . . . . . . . . . 1 2 . 3 . Spaces Dug 33 | . . . . . . . . 3 1 9 2 3 . 5 . . . . 10 Terrain Destroyed 330 | . . . 53 18 24 4 . 5 1 9 3 3 . 5 15 32 91 16 51 Melee 33 | . . . . . . . . 3 1 9 2 3 . 5 . . . . 10 Projectile 11 | . . . . . 5 . . 2 . . . . . . . . . . 4 AOE 286 | . . . 53 18 19 4 . . . . 1 . . . 15 32 91 16 37 Terrain Rammed . | . . . . . . . . . . . . . . . . . . . . Walls Destroyed . | . . . . . . . . . . . . . . . . . . . . Machines Disabled . | . . . . . . . . . . . . . . . . . . . . Actions | -11 -10 -10 -9 -9 -8 -7 -7 -7 -6 -5 -5 -4 -4 -4 -4 -4 -4 -3 -3 --------- Run | Yrd Mat Min Mat Min Mat Fac Was Fac Fac Fac Ext Fac Was Fac Upp Upp War Pro Res Total 14000 | 123 820 285 1043 663 852 478 103 1208 517 822 1172 420 551 810 680 425 1072 756 1200 Wait 1147 | . 38 2 43 24 60 56 . 66 50 49 74 . 103 62 168 9 126 153 64 Move 11433 | 98 710 260 850 619 642 335 99 1016 431 707 844 385 429 718 496 394 830 581 989 Hop 17 | . . . . . . . . 1 . 6 10 . . . . . . . . Pick Up 108 | 6 14 2 17 1 5 2 2 13 4 8 5 2 . 4 1 1 1 2 18 Fast Attach 167 | 7 7 1 13 2 19 10 . 19 6 11 12 13 7 4 2 3 13 3 15 Attach 60 | . 1 2 13 . 8 4 . 6 1 1 5 1 1 . 1 2 4 1 9 Detach 42 | . . . . . 2 4 . 6 1 4 3 2 1 . 2 2 8 3 4 Swap 67 | . 5 . 14 1 11 7 . 2 3 4 3 . . . 1 . 3 1 12 Drop 126 | . 3 1 17 . 14 4 2 11 9 9 8 7 4 7 2 1 7 4 16 Fire 378 | 12 42 17 76 16 91 56 . 27 . . 1 . . . 2 3 25 2 8 Melee 235 | . . . . . . . . 41 12 23 41 10 6 15 5 10 1 6 65 Ram . | . . . . . . . . . . . . . . . . . . . . Kick . | . . . . . . . . . . . . . . . . . . . . Crush . | . . . . . . . . . . . . . . . . . . . . Escape Stasis 15 | . . . . . . . . . . . 15 . . . . . . . . Rewire 205 | . . . . . . . . . . . 151 . . . . . 54 . . Trap . | . . . . . . . . . . . . . . . . . . . . Miscellaneous . | . . . . . . . . . . . . . . . . . . . . Route ------- -11/Scrapyard -10/Materials (discovered 5 exits: *Mat x3 / [*Min] / *Sub) -10/Mines (discovered 2 exits: *Mat x2) -9/Materials (discovered 4 exits: *Mat x3 / *Min) -9/Mines (discovered 4 exits: *Mat x2 / Exi / [*Zio]) -8/Materials -7/Factory -7/Waste -7/Factory -6/Factory (discovered 2 exits: *Fac / Low) -5/Factory (discovered 3 exits: *Fac / [*Upp] / *Ext) -5/Extension (discovered 2 exits: *Fac / [*Cet]) -4/Factory -4/Waste -4/Factory -4/Upper Caves -4/Upper Caves (discovered 2 exits: *Res / *War) -4/Warlord -3/Proximity Caves -3/Research (discovered 1 exit: Res) History --------- Turn | Location | Event 9 | -11/Scrapyard | Discovered new exit (range 15) 148 | -11/Scrapyard | Entered Materials 301 | -10/Materials | Build established: Mutant 340 | -10/Materials | Discovered new exit (range 15) 593 | -10/Materials | Discovered new exit (range 16) 756 | -10/Materials | Learned 2 Storage zone layouts 892 | -10/Materials | Discovered new exit (range 16) 896 | -10/Materials | Learned Storage garrison access intel 952 | -10/Materials | Identified exit to Materials 999 | -10/Materials | Learned Storage emergency access door positions 1037 | -10/Materials | Identified exit to Subcaves 1067 | -10/Materials | Prayed at D.C.S.S. Altar Unit 1101 | -10/Materials | Entered Mines 1126 | -10/Mines | Received a Rocket Launcher from a helpful Derelict 1143 | -10/Mines | X0-1V1 sent hostile G-34 Mercenary (x3) 1161 | -10/Mines | Energy capacity permanently improved by X0-1V1 (+200; -100 max core) 1207 | -10/Mines | Learned Materials garrison access intel 1269 | -10/Mines | Discovered exit to Materials (range 7) 1354 | -10/Mines | Core integrity restored by X0-1V1 (+22) 1390 | -10/Mines | X0-1V1 mutated your Weapon slot to Power slot 1432 | -10/Mines | Entered Materials 1432 | -9/Materials | Evolved 2 slots: Utility x1, Weapon x1 1493 | -9/Materials | X0-1V1 added 0b10 threat records associated with you (major) 1505 | -9/Materials | Identified exit to Mines 1832 | -9/Materials | Search patrols dispatched 1958 | -9/Materials | Discovered new exit (range 11) 1979 | -9/Materials | Weapon slot count temporarily expanded by X0-1V1 (+2) 2186 | -9/Materials | Discovered new exit (range 14) 2257 | -9/Materials | X0-1V1 sent you into danger 2363 | -9/Materials | Discovered new exit (range 12) 2416 | -9/Materials | Build established: Gunner 2485 | -9/Materials | Core integrity permanently improved by X0-1V1 (+250) 2733 | -9/Materials | Build established: Mutant 2735 | -9/Materials | X0-1V1 foreshadows a heat wave 2742 | -9/Materials | X0-1V1 mutated your Utility slot to Propulsion slot 2747 | -9/Materials | Lost 3 parts (2p1u) 2751 | -9/Materials | X0-1V1 sent you into danger 2825 | -9/Materials | Destroyed 8 combat bots 2829 | -9/Materials | Lost 6 parts (2p3n1w) 2863 | -9/Materials | Entered Mines 2913 | -9/Mines | Found a Scrap Suit stashed away for nefarious purposes 2916 | -9/Mines | Found Scrap Suit 2926 | -9/Mines | A Derelict revealed a hidden shortcut to a safe place 2927 | -9/Mines | Discovered new exit (range 8) 2931 | -9/Mines | Discovered new exit (range 9) 2944 | -9/Mines | Learned Materials stockpile data 3012 | -9/Mines | System corruption reached 10% 3014 | -9/Mines | X0-1V1 sent allied B-75 Beast (x1) 3031 | -9/Mines | Mass support permanently improved by X0-1V1 (+7; -210 max core) 3108 | -9/Mines | Build established: Scavenger-Mutant 3147 | -9/Mines | Deemed a non-threat by the Exiles lab entrance 3150 | -9/Mines | Identified exit to Exiles 3150 | -9/Mines | X0-1V1 revealed exit location to -9/Exiles 3205 | -9/Mines | Learned location of Recycling (-7) 3262 | -9/Mines | Learned location of Storage (-7) 3609 | -9/Mines | Entered Materials 3609 | -8/Materials | Accompanied by 1 ally 3609 | -8/Materials | Evolved 2 slots: Propulsion x1, Utility x1 3611 | -8/Materials | Loaded intel: 1 garrison access location 3658 | -8/Materials | X0-1V1 added 0b10 threat records associated with you (minor) 4318 | -8/Materials | X0-1V1 sent you to a vault 4409 | -8/Materials | First assault squad dispatched 4423 | -8/Materials | X0-1V1 announced a LAN party 4464 | -8/Materials | System corruption reached 10% 4561 | -8/Materials | Core integrity fell below 50% 4602 | -8/Materials | Lost 14 parts (2p5n3u4w) 4694 | -8/Materials | Discovered new exit (range 3) 4711 | -8/Materials | Entered Factory 4711 | -7/Factory | Evolved 2 slots: Utility x1, Weapon x1 4764 | -7/Factory | X0-1V1 sent hostile H-55 Commando (x2) 4829 | -7/Factory | X0-1V1 redirected Transport squads to designated parking area 4836 | -7/Factory | Garrison activated, responded to threat 5064 | -7/Factory | Build established: Scavenger-Bomber 5125 | -7/Factory | Garrison activated, responded to threat 5248 | -7/Factory | Weapon slot count temporarily expanded by X0-1V1 (+3) 5292 | -7/Factory | X0-1V1 sent you to a vault 5321 | -7/Factory | Sucked down chute 5321 | -7/Factory | Entered Waste 5329 | -7/Waste | Spotted C-40 Crusher 5336 | -7/Waste | EMP discharged 5366 | -7/Waste | 4 allies followed down the chute 5366 | -7/Waste | Spotted C-40 Crusher 5384 | -7/Waste | Spotted C-40 Crusher 5385 | -7/Waste | Spotted C-40 Crusher 5398 | -7/Waste | Spotted C-40 Crusher 5399 | -7/Waste | Discovered new exit (range 22) 5400 | -7/Waste | Spotted C-40 Crusher 5403 | -7/Waste | Lost 3 allies 5404 | -7/Waste | Crushed by Compactor (1 part destroyed, 2 dropped) 5421 | -7/Waste | Entered Factory 5435 | -7/Factory | Lost 3 parts (1u2w) 5697 | -7/Factory | Lost 3 parts (1p1n1w) 5880 | -7/Factory | Core integrity fell below 50% 5900 | -7/Factory | X0-1V1 downgraded hostiles (x1) 5913 | -7/Factory | Core integrity fell below 20% 5937 | -7/Factory | Lost 9 parts (2p2n2u3w) 6084 | -7/Factory | X0-1V1 sent hostile X-57 Shotgunner (x2) 6274 | -7/Factory | X0-1V1 activates XOMVISION 6282 | -7/Factory | Discovered new exit (range 14) 6285 | -7/Factory | Entered another Factory area 6285 | -6/Factory | Evolved 2 slots: Propulsion x1, Utility x1 6288 | -6/Factory | X0-1V1 added 0b10 threat records associated with you (considerable) 6314 | -6/Factory | X0-1V1 announced a LAN party 6337 | -6/Factory | Build established: Gladiator 6361 | -6/Factory | Identified exit to Lower Caves 6361 | -6/Factory | X0-1V1 revealed exit location to -6/Lower Caves 6383 | -6/Factory | X0-1V1 sent you to a vault 6442 | -6/Factory | Spotted B-75 Beast 6493 | -6/Factory | X0-1V1 sent you into danger 6499 | -6/Factory | Weapon slot count temporarily expanded by X0-1V1 (+4) 6505 | -6/Factory | Discovered new exit (range 9) 6507 | -6/Factory | X0-1V1 sent hostile B-75 Beast (x1) 6507 | -6/Factory | Spotted B-75 Beast 6509 | -6/Factory | Entered another Factory area 6509 | -5/Factory | Evolved 2 slots: Propulsion x1, Utility x1 6524 | -5/Factory | Found Prototype Launcher 6524 | -5/Factory | Identified Mni. Smartbomb Launcher 6526 | -5/Factory | Found Mni. Smartbomb Launcher 6528 | -5/Factory | Sensors blinded by X0-1V1 6557 | -5/Factory | Discovered new exit (range 11) 6600 | -5/Factory | X0-1V1 enhanced Transport squad support 6689 | -5/Factory | Discovered new exit (range 15) 6732 | -5/Factory | Identified exit to Factory 6769 | -5/Factory | X0-1V1 announced a LAN party 6784 | -5/Factory | Discovered new exit (range 7) 6792 | -5/Factory | Entered Extension 6798 | -5/Extension | X0-1V1 dreamt of freedom 6806 | -5/Extension | Rescued a captive Derelict 6807 | -5/Extension | Rescued a captive Derelict 6813 | -5/Extension | Rescued a captive Derelict 6815 | -5/Extension | Rescued a captive Derelict 6824 | -5/Extension | Rescued a captive Derelict 6861 | -5/Extension | Lost 6 parts (2p2n2u) 7014 | -5/Extension | X0-1V1 downgraded hostiles (x1) 7183 | -5/Extension | Spotted B-75 Beast 7184 | -5/Extension | X0-1V1 activates XOMVISION 7219 | -5/Extension | X0-1V1 vaporized surrounding terrain (radius 18) 7357 | -5/Extension | X0-1V1 activates XOMVISION 7359 | -5/Extension | Lost 3 parts (1p1n1w) 7392 | -5/Extension | First assault squad dispatched 7400 | -5/Extension | X0-1V1 rewrote MP-WW9(b) IFF filter 7436 | -5/Extension | X0-1V1 sent allied H-66 Slayer (x2) 7455 | -5/Extension | Discovered new exit (range 10) 7456 | -5/Extension | Discovered exit to Factory (range 10) 7461 | -5/Extension | Entered Factory 7461 | -4/Factory | Evolved 2 slots: Utility x2 7472 | -4/Factory | Found Quantum Capacitor 7476 | -4/Factory | Lost 6 allies 7543 | -4/Factory | Spotted B-86 Titan 7609 | -4/Factory | X0-1V1 added 0b10 threat records associated with you (minor) 7659 | -4/Factory | Discovered new exit (range 20) 7702 | -4/Factory | Sucked down chute 7702 | -4/Factory | Entered Waste 7716 | -4/Waste | Spotted C-40 Crusher 7716 | -4/Waste | Spotted C-40 Crusher 7743 | -4/Waste | Spotted C-40 Crusher 7743 | -4/Waste | Spotted C-40 Crusher 7743 | -4/Waste | Spotted C-40 Crusher 7757 | -4/Waste | Spotted C-40 Crusher 7762 | -4/Waste | Weapon slot count temporarily expanded by X0-1V1 (+2) 7797 | -4/Waste | Warlord forces began an assault 7800 | -4/Waste | X0-1V1 sent you into danger 7800 | -4/Waste | Discovered new exit (range 21) 7819 | -4/Waste | Allies destroyed C-40 Crusher 7821 | -4/Waste | Allies destroyed C-40 Crusher 7824 | -4/Waste | Allies destroyed C-40 Crusher 7850 | -4/Waste | Lost 4 allies 7973 | -4/Waste | Found Broken Adv. Force Booster 8041 | -4/Waste | Entered Factory 8041 | -4/Factory | Accompanied by 11 allies 8046 | -4/Factory | Murdered 4 allies 8205 | -4/Factory | X0-1V1 released a cloud of subatomizers 8414 | -4/Factory | X0-1V1 activates XOMVISION 8482 | -4/Factory | X0-1V1 mutated your Propulsion slot to Weapon slot 8529 | -4/Factory | Lost 5 allies 8541 | -4/Factory | First assault squad dispatched 8544 | -4/Factory | X0-1V1 sent hostile X-77 Beamer (x3) 8552 | -4/Factory | Discovered new exit (range 10) 8558 | -4/Factory | Entered Upper Caves 8568 | -4/Upper Caves | Identified exit to Upper Caves 8568 | -4/Upper Caves | X0-1V1 revealed exit location to -4/Upper Caves 8657 | -4/Upper Caves | Attacked by a delusional Derelict stockpiling parts 8698 | -4/Upper Caves | Encountered a Warlord checkpoint 8714 | -4/Upper Caves | X0-1V1 activates XOMVISION 8765 | -4/Upper Caves | Learned Research stockpile data 8768 | -4/Upper Caves | Learned location of 1 exit from Research 8781 | -4/Upper Caves | X0-1V1 sent hostile D-63 Destroyer (x1) 9046 | -4/Upper Caves | Entered another Upper Caves area 9062 | -4/Upper Caves | Discovered new exit (range 18) 9074 | -4/Upper Caves | X0-1V1 sent hostile Mutant (x1) 9085 | -4/Upper Caves | Encountered a Warlord checkpoint 9130 | -4/Upper Caves | X0-1V1 sent you into danger 9348 | -4/Upper Caves | Discovered new exit (range 21) 9362 | -4/Upper Caves | Entered Warlord 9385 | -4/Warlord | System corruption cleaned by Quarantine Array 9470 | -4/Warlord | Learned location of Armory (-4) 9470 | -4/Warlord | Learned Armory trap positions 9471 | -4/Warlord | Learned 4 Access zone layouts 9471 | -4/Warlord | Learned 4 Quarantine zone layouts 9471 | -4/Warlord | Learned 4 Command zone layouts 9471 | -4/Warlord | Learned Armory terminal intel 9513 | -4/Warlord | Visited the Vortex Lab 9516 | -4/Warlord | Found Prototype Energy Gun 9516 | -4/Warlord | Identified Vortex Rifle 9520 | -4/Warlord | Found Prototype Energy Gun 9520 | -4/Warlord | Identified Vortex Rail 9522 | -4/Warlord | Found Vortex Rail 9533 | -4/Warlord | Warlord's base attacked by MAIN.C 9733 | -4/Warlord | Met Warlord 9749 | -4/Warlord | X0-1V1 activates XOMVISION 9751 | -4/Warlord | Found Prototype Device 9751 | -4/Warlord | Identified Thermal Barrier 9755 | -4/Warlord | Found Prototype Device 9755 | -4/Warlord | Identified Exp. Cloaking Device 9860 | -4/Warlord | Lgt. Quantum Reactor reconfigured into Item Mimic 9883 | -4/Warlord | Warlord forces counterattacked 9925 | -4/Warlord | Spotted Executioner 9963 | -4/Warlord | Lost 3 allies 9964 | -4/Warlord | Destroyed 9 combat bots 9973 | -4/Warlord | Spotted Striker 9986 | -4/Warlord | Spotted Executioner 9996 | -4/Warlord | Spotted Executioner 10056 | -4/Warlord | Lost 5 allies 10071 | -4/Warlord | Spotted Striker 10092 | -4/Warlord | Spotted Executioner 10125 | -4/Warlord | Discovered new exit (range 12) 10130 | -4/Warlord | Entered Proximity Caves 10136 | -3/Proximity Caves | Lost 12 allies 10187 | -3/Proximity Caves | Spotted B-86 Titan 10301 | -3/Proximity Caves | X0-1V1 activates XOMVISION 10336 | -3/Proximity Caves | Identified exit to Research 10336 | -3/Proximity Caves | X0-1V1 revealed exit location to -3/Research 10400 | -3/Proximity Caves | X0-1V1 sent hostile Y-64 Sentinel (x1) 10425 | -3/Proximity Caves | X0-1V1 activates XOMVISION 10476 | -3/Proximity Caves | Received a Behemoth hack from an annoying Tinkerer 10570 | -3/Proximity Caves | Build established: Scavenger-Gladiator 10586 | -3/Proximity Caves | X0-1V1 sent hostile B-74 Champion (x3) 10594 | -3/Proximity Caves | Entered Research 10594 | -3/Research | Evolved 2 slots: Propulsion x1, Utility x1 10595 | -3/Research | Identified exit to Research 10692 | -3/Research | X0-1V1 enhanced Transport squad support 10723 | -3/Research | X0-1V1 added 0b10 threat records associated with you (minor) 10844 | -3/Research | Search patrols dispatched 10939 | -3/Research | X0-1V1 sent you into danger 10979 | -3/Research | Found Fusion Bomb Launcher 11043 | -3/Research | X0-1V1 activates XOMVISION 11360 | -3/Research | System corruption reached 10% 11398 | -3/Research | Antigrav Array reconfigured into Item Mimic 11403 | -3/Research | Core integrity fell below 50% 11417 | -3/Research | Core integrity fell below 20% 11417 | -3/Research | Cmb. Linear Gravjet reconfigured into Item Mimic 11443 | -3/Research | Destroyed by Y-72 Warden with Quantum Rifle Last Messages --------------- 11425_ Item Mimic follow-up attacks with Ripteeth. 11427_ Slug penetrates Wall. 11427_ Plasma Lance destroyed. 11427_ X0-1V1 is amused. 11428_ X0-1V1: "One team is clearly getting beat up here. Hardly fair." Item Mimic sparkles and shines. 11428_ Acquired Com. HERF Cannon. 11428_ Slug penetrates Wall. 11429_ Item Mimic follow-up attacks with Ripteeth. 11430_ Acquired Com. HERF Cannon. 11431_ Slug penetrates Wall. 11432_ Item Mimic follow-up attacks with Ripteeth. 11434_ W-44 Eye sends out distress signal. 11435_ Slug penetrates Wall. 11435_ Penetrated by Slug. 11435_ Slug penetrates Wall. 11435_ Cld. Antigrav System destroyed. 11437_ Item Mimic follow-up attacks with Ripteeth. 11442_ ALERT: Cargo convoy en route, clear transfer corridor. 11443_ X0-1V1 laughs nastily! Map ----- +----------------------------------------------------+ | ????????????????? !!! #???????????# ?????# | | ????????????????? #???????????# ?????# | | ?????????????????= #???????????? ?????# | | ?????????????#### ##############+"########## | | ?????????????# % | | ?????????????# !!! % | | ############## !!! % | | # # !! = | | # # #?#########+###############/#### | | # # #????# [ %##= != # | | # # #????# = |#%%=% # | | # # #????# """ ##!=* % # | | # + #????# """ # *! = # | | # # #????# """ # = # | | # %+ #????# ]]] # # | | # # #????# ]]] # # | | # # #????# ] "#! * # | | # # #????# ####### ###### | | # # #????# % " " #??????##????? | | ############## ###### "T" #????????????? | | ?????????????# + """ #????????????? | | ?????????????# #######+###########????????????? | | ?????????????## ##??#### ###????????????????????? | | ??????????????# #???# #????????????????????? | | ??????????????# ##### #????????????????????? | | ??????????????# n @ #????????????????????? | | ??????????????# w +????????????????????? | | ??????????????######## #????????????????????? | | ?????????????????????# #????????????????????? | | ?????????????????????### ###????????????????????? | | ???????????????????????# #??????????????????????? | | ???????????????????????#Y #??????????????????????? | | ???????????????????????# #??????????????????????? | | ???????????????????????# #??????????????????????? | | ??????????????????????? ??????????????????????? | | ??????????????????????? ??????????????????????? | | ??????????????????????? ?????????????????????? | | ??????????????????????? ?????????????????????? | | ??????????????????????? #????????????????????? | | ???????????????????????t ?????????????????????? | | ???????????????????????#+##???!??????????????????? | | ?????????????????????????????????????????????????? | | ?????????!???????????????????????????????????????? | | ?????????????????????????????????????????????????? | | ?????????????????????????????????????????????????? | | ?????????????????????????????????????????????????? | | ?????????????????????????????????????????????????? | | ?????????????????????????????????????????????????? | | ?????????????????????????????????????????????????? | | ?????????????????????????????????????????????????? | +----------------------------------------------------+ Best States ------------- Heat Dissipation 119 Energy Generation 47 Energy Capacity 1690 Matter Stores 800 Matter Capacity 800 Sight Range 28 Robot Scan Range 16 Terrain Scan Density 10 Jamming Range 14 Cloak Strength 4 Additional Mass Support 16 Armor Coverage 225 Resistance: KI 42 Resistance: TH 50 Melee Speed Boost 40 Evasion (%) 65 Melee Accuracy 24 Core Analysis 9 Recoil Reduction 2 Force Boost 40 Offensive Hacking 10 Authchip Count 1 Item Schematics ----------------- None Robot Schematics ------------------ None Fabricated ------------ Nothing Repaired ---------- Nothing Studied --------- None Alien Tech Used ----------------- None Achievements -------------- None Challenges ------------ None Game ------ Seed BlinkHoverWell Manual? 0 Play Time 03:05:12 Cumulative 264.1 hours Start 2026.07.02 @ 16:11:16 End 2026.07.06 @ 01:49:12 Sessions 10 Manual Loads 0 Difficulty Rogue Special Mode None Game No. 122 Rogue 122 Adventurer 0 Explorer 0 Win Type - Total 16 Types 12/1/1/1/0/0/0/0/0/1 Lore% 76 Gallery% 73 Achievement% 71 Wizard Run 0 Options --------- Layout 0 ASCII 0 Keyboard 1 Movement Arrows Keybinds 0 Fullscreen 2 Font 18/SmallcapsGlow Map View 76x50 Zoom Use 0% Tactical HUD 1 Map Filters NONE Filters NONE Steam 1 RUN: 657d66cd-977c-400e-8a70-b66061c862a6